fUSD/lending_fUSD_20240201
["ID","MTS","AMOUNT","RATE_DAILY","PERIOD"]
[313114491,1706764238762,-176.95,0.00029993,2]
[313114493,1706764238771,-387.14793315,0.0003,4]
[313114495,1706764238780,-155.0,0.0003,2]
[313114497,1706764238790,-312.61532307,0.0003,2]
[313114500,1706764238800,-500.0,0.0003,2]
[313114501,1706764238810,-1000.0,0.0003,2]
[313114503,1706764238819,-429.5187424,0.0003003,2]
[313114506,1706764238829,-150.0,0.00030099,2]
[313114508,1706764238838,-154391.34541607,0.000301,2]
[313114510,1706764238847,-153.06,0.00030137,2]
[313114512,1706764238856,-599.04,0.00030193,2]
[313114514,1706764238865,-150.1,0.000302,2]
[313114515,1706764238874,-176.95,0.00030209,2]
[313114518,1706764238884,-167.5,0.00030331,2]
[313114519,1706764238893,-176.95,0.00030425,2]
[313114520,1706764238902,-6603.16469699,0.00030452,14]
[313114521,1706764238911,-487.7,0.00030452,2]
[313114522,1706764238920,-1764.4,0.0003048,2]
[313114523,1706764238929,-400.96,0.00030608,2]
[313114524,1706764238938,-176.95,0.00030642,2]
[313114525,1706764238947,-15118.58548577,0.00030678,2]
[313114526,1706764238957,-176.95,0.00030858,2]
[313114527,1706764238966,-15964.31969646,0.000309,2]
[313114528,1706764238976,-1073.98130814,0.000309,5]
[313114530,1706764238985,-153.06,0.0003092,2]
[313114531,1706764238994,-226.73196236,0.00031,2]
[313114533,1706764239003,-7631.61020856,0.00031,2]
[313114537,1706764239025,-371.07036043,0.00031,2]
[313114539,1706764239036,-176.95,0.00031074,2]
[313114541,1706764239046,-2940.0,0.000311,3]
[313114543,1706764239055,-5621.0,0.000312,3]
[313114545,1706764239065,-176.95,0.00031291,2]
[313114547,1706764239075,-158.80447005,0.000314,30]
[313114549,1706764239085,-124271.18633041,0.0003149,2]
[313114551,1706764239094,-500.0,0.000315,2]
[313114553,1706764239105,-1911.11,0.00031507,2]
[313114555,1706764239114,-412.35,0.00031507,2]
[313114557,1706764239124,-176.95,0.00031507,2]
[313114559,1706764239134,-3000.0,0.0003163,2]
[313114561,1706764239143,-180.0,0.00031644,2]
[313114563,1706764239152,-250.0,0.00031699,2]
[313114565,1706764239162,-153.06,0.00031703,2]
[313114567,1706764239171,-494.59,0.00031781,2]
[313114569,1706764239181,-2482.40147742,0.00031799,4]
[313114572,1706764239191,-69988.93647913,0.00031799,4]
[313114574,1706764239202,-2000.0,0.000318,2]
[313114576,1706764239212,-171.10215331,0.000318,2]
[313114578,1706764239221,-151961.583166,0.000318,3]
[313114580,1706764239231,-357.72,0.00031851,2]
[313114582,1706764239241,-1122.96573044,0.00031877,2]
[313114584,1706764239250,-487.7,0.00031902,2]
[313114586,1706764239261,-250.0,0.00031973,2]
[313114588,1706764239270,-15118.58548577,0.00031975,3]
[313114590,1706764239279,-300.0,0.00032,2]
[313114592,1706764239289,-1440.47775034,0.0003205,2]
[313114594,1706764239299,-204.179106,0.00032118,3]
[313114596,1706764239308,-250.0,0.00032247,2]
[313114598,1706764239318,-151.0201,0.00032348,4]
[313114600,1706764239327,-2854.25719253,0.00032371,2]
[313114602,1706764239337,-246.62664246,0.00032379,4]
[313114604,1706764239347,-3000.0,0.000324,2]
[313114606,1706764239356,-4934.20168968,0.000324,2]
[313114608,1706764239366,-4934.20168957,0.000324,2]
[313114610,1706764239376,-151.0201,0.00032448,4]
[313114613,1706764239386,-1453.62,0.00032466,2]
[313114615,1706764239395,-403.35,0.00032466,2]
[313114617,1706764239404,-255.63411561,0.00032472,3]
[313114619,1706764239414,-167.5,0.00032483,2]
[313114621,1706764239423,-153.06,0.00032485,2]
[313114623,1706764239432,-200.0,0.00032488,3]
[313114625,1706764239442,-800.0,0.00032488,2]
[313114627,1706764239451,-168.52594761,0.00032497,2]
[313114629,1706764239461,-202.62691188,0.000325,2]
[313114631,1706764239471,-12988.5708014,0.000325,3]
[313114633,1706764239480,-259.80245527,0.00032521,2]
[313114635,1706764239490,-200.0,0.00032537,3]
[313114637,1706764239500,-800.0,0.00032537,2]
[313114639,1706764239510,-500.0,0.00032538,2]
[313114641,1706764239520,-177.0201,0.00032548,4]
[313114643,1706764239530,-1000.0,0.00032636,2]
[313114645,1706764239540,-987.3383,0.00032636,2]
[313114647,1706764239550,-167.5,0.00032643,2]
[313114649,1706764239559,-166.0201,0.00032648,4]
[313114651,1706764239570,-216.75702514,0.00032665,2]
[313114653,1706764239579,-267.80426092,0.00032697,4]
[313114655,1706764239589,-4822.65257055,0.00032697,4]
[313114657,1706764239598,-245.86982669,0.00032697,4]
[313114659,1706764239608,-216.05407102,0.00032698,4]
[313114661,1706764239617,-290.81502646,0.00032698,4]
[313114663,1706764239627,-301.89135144,0.00032698,4]
[313114665,1706764239637,-297.14623067,0.00032698,4]
[313114667,1706764239646,-267.10082462,0.00032698,4]
[313114669,1706764239655,-233.6686873,0.00032698,4]
[313114672,1706764239665,-50479.62402542,0.00032699,2]
[313114674,1706764239675,-8057.135868,0.000327,2]
[313114676,1706764239684,-5633.68676721,0.000327,2]
[313114677,1706764239694,-209.0,0.00032703,9]
[313114680,1706764239703,-2735.54772074,0.00032747,14]
[313114682,1706764239713,-151.0201,0.00032748,4]
[313114684,1706764239723,-172.75,0.00032754,2]
[313114686,1706764239733,-4884.25961146,0.00032775,4]
[313114688,1706764239743,-155.94824206,0.00032799,2]
[313114690,1706764239757,-150.01,0.00032799,2]
[313114692,1706764239767,-3306.75797983,0.00032799,2]
[313114694,1706764239777,-150.0,0.00032799,2]
[313114696,1706764239787,-560114.09619109,0.000328,2]
[313114698,1706764239797,-176.85093205,0.000328,4]
[313114700,1706764239806,-336.01542095,0.000328,4]
[313114702,1706764239816,-295.20145599,0.000328,2]
[313114704,1706764239826,-8516.99939179,0.000328,4]
[313114707,1706764239836,-116820.766967,0.00032802,2]
[313114710,1706764239847,-11155.6147558,0.00032802,2]
[313114713,1706764239856,-3207.7687861,0.00032802,2]
[313114717,1706764239866,-220.0201,0.00032848,4]
[313114719,1706764239875,-2437.79,0.00032866,10]
[313114722,1706764239885,-3806.2,0.00032866,10]
[313114726,1706764239894,-3171.83,0.00032866,10]
[313114729,1706764239903,-2643.19,0.00032866,10]
[313114731,1706764239913,-1337.94,0.00032876,2]
[313114733,1706764239922,-503.93397822,0.00032876,2]
[313114736,1706764239932,-176.75866955,0.00032876,2]
[313114738,1706764239941,-528.90173183,0.00032876,2]
[313114739,1706764239950,-521.95930049,0.00032876,15]
[313114741,1706764239960,-531.35536391,0.00032876,2]
[313114743,1706764239969,-640.41512989,0.00032876,2]
[313114745,1706764239978,-516.55878581,0.00032876,2]
[313114747,1706764239987,-500.0,0.00032876,2]
[313114749,1706764239996,-527.87789072,0.00032876,2]
[313114752,1706764240006,-528.28359069,0.00032876,2]
[313114753,1706764240016,-541.87279483,0.00032876,2]
[313114755,1706764240025,-522.3660217,0.00032876,2]
[313114757,1706764240034,-507.50356999,0.00032876,2]
[313114760,1706764240044,-515.09522024,0.00032876,2]
[313114762,1706764240053,-510.47353384,0.00032876,2]
[313114764,1706764240062,-534.70523559,0.00032876,2]
[313114766,1706764240071,-514.77932297,0.00032876,2]
[313114768,1706764240081,-532.57023037,0.00032876,2]
[313114770,1706764240090,-532.67275158,0.00032876,2]
[313114772,1706764240099,-505.05458496,0.00032876,2]
[313114774,1706764240108,-512.22668518,0.00032876,2]
[313114776,1706764240118,-527.07158319,0.00032876,2]
[313114778,1706764240127,-198.14966906,0.00032876,9]
[313114780,1706764240137,-500.43179539,0.00032876,2]
[313114782,1706764240146,-585.97670425,0.00032876,2]
[313114784,1706764240156,-524.9873289,0.00032876,2]
[313114786,1706764240165,-513.12044176,0.00032876,2]
[313114788,1706764240175,-500.0,0.00032876,2]
[313114790,1706764240184,-1000.0,0.00032876,7]
[313114792,1706764240194,-525.2410119,0.00032876,2]
[313114794,1706764240204,-527.72860082,0.00032876,2]
[313114796,1706764240213,-530.33673262,0.00032876,2]
[313114798,1706764240222,-500.01943425,0.00032876,2]
[313114800,1706764240231,-526.18323914,0.00032876,2]
[313114802,1706764240240,-500.0,0.00032876,2]
[313114804,1706764240250,-570.94789095,0.00032876,2]
[313114806,1706764240260,-550.58502391,0.00032876,2]
[313114808,1706764240269,-514.39109038,0.00032876,2]
[313114810,1706764240279,-575.68703796,0.00032876,2]
[313114812,1706764240288,-618.45211522,0.00032876,2]
[313114814,1706764240297,-531.79317475,0.00032876,2]
[313114816,1706764240307,-523.04452817,0.00032876,2]
[313114818,1706764240318,-512.97307112,0.00032876,2]
[313114820,1706764240327,-400.03286693,0.00032876,2]
[313114822,1706764240337,-554.41622797,0.00032876,2]
[313114824,1706764240346,-538.60583617,0.00032876,2]
[313114826,1706764240356,-500.0,0.00032876,2]
[313114828,1706764240366,-507.2816605,0.00032876,2]
[313114830,1706764240375,-520.74401539,0.00032876,2]
[313114832,1706764240384,-609.87096555,0.00032876,2]
[313114834,1706764240394,-560.27,0.00032876,2]
[313114837,1706764240404,-483.43509994,0.00032876,2]
[313114839,1706764240414,-532.90402176,0.00032876,2]
[313114841,1706764240426,-586.31195677,0.00032876,2]
[313114843,1706764240435,-523.04007345,0.00032876,2]
[313114844,1706764240444,-500.0,0.00032876,2]
[313114847,1706764240454,-602.4628144,0.00032876,2]
[313114849,1706764240463,-513.66663881,0.00032876,2]
[313114851,1706764240473,-616.3111488,0.00032876,2]
[313114853,1706764240482,-518.71654313,0.00032876,2]
[313114855,1706764240491,-505.74858786,0.00032876,2]
[313114857,1706764240501,-521.96108107,0.00032876,2]
[313114859,1706764240511,-500.0,0.00032876,2]
[313114861,1706764240520,-586.94543174,0.00032876,2]
[313114863,1706764240529,-522.44050918,0.00032876,2]
[313114865,1706764240538,-525.44773599,0.00032876,2]
[313114867,1706764240548,-526.83101839,0.00032876,2]
[313114869,1706764240557,-556.52144209,0.00032876,2]
[313114871,1706764240566,-568.7185919,0.00032876,2]
[313114873,1706764240575,-500.0,0.00032876,10]
[313114875,1706764240584,-519.99921061,0.00032876,2]
[313114877,1706764240593,-474.0143717,0.00032876,2]
[313114879,1706764240603,-521.56513331,0.00032876,2]
[313114881,1706764240612,-500.0,0.00032876,2]
[313114883,1706764240622,-541.11,0.00032876,2]
[313114885,1706764240631,-524.9009412,0.00032876,2]
[313114887,1706764240641,-521.66227605,0.00032876,2]
[313114889,1706764240650,-501.43788072,0.00032876,2]
[313114890,1706764240659,-547.07461031,0.00032876,2]
[313114891,1706764240668,-524.84733524,0.00032876,2]
[313114892,1706764240677,-569.14472357,0.00032876,2]
[313114893,1706764240686,-509.59550589,0.00032876,2]
[313114894,1706764240695,-507.95887125,0.00032876,2]
[313114895,1706764240704,-644.64066485,0.00032876,2]
[313114897,1706764240713,-533.0175737,0.00032876,2]
[313114899,1706764240723,-568.70297962,0.00032876,2]
[313114901,1706764240732,-500.0,0.00032876,2]
[313114903,1706764240741,-610.8386383,0.00032876,2]
[313114905,1706764240752,-512.5514014,0.00032876,2]
[313114907,1706764240764,-547.87049903,0.00032876,2]
[313114909,1706764240773,-544.01621874,0.00032876,2]
[313114911,1706764240783,-228.43138764,0.00032876,2]
[313114913,1706764240792,-500.0,0.00032876,2]
[313114915,1706764240801,-504.35004035,0.00032876,2]
[313114917,1706764240811,-510.47161292,0.00032876,2]
[313114919,1706764240820,-542.06185033,0.00032876,2]
[313114921,1706764240830,-583.15829645,0.00032876,2]
[313114923,1706764240840,-513.03718244,0.00032876,2]
[313114925,1706764240850,-309.48559253,0.00032876,2]
[313114927,1706764240859,-543.47883563,0.00032876,2]
[313114929,1706764240868,-512.97955622,0.00032876,2]
[313114931,1706764240877,-553.0216033,0.00032876,2]
[313114933,1706764240886,-500.0,0.00032876,2]
[313114935,1706764240895,-560.52879056,0.00032876,2]
[313114937,1706764240904,-500.0,0.00032876,2]
[313114939,1706764240913,-519.58653756,0.00032876,2]
[313114941,1706764240922,-500.0,0.00032876,2]
[313114943,1706764240931,-574.9062427,0.00032876,2]
[313114945,1706764240940,-519.83302573,0.00032876,2]
[313114947,1706764240949,-553.03831461,0.00032876,2]
[313114948,1706764240958,-579.98138907,0.00032876,2]
[313114949,1706764240967,-300.29955013,0.00032876,2]
[313114950,1706764240977,-564.98849963,0.00032876,2]
[313114951,1706764240986,-551.95954288,0.00032876,2]
[313114952,1706764240995,-549.42930093,0.00032876,2]
[313114953,1706764241005,-550.8637824,0.00032876,2]
[313114954,1706764241015,-500.0,0.00032876,2]
[313114955,1706764241027,-562.37109157,0.00032876,2]
[313114956,1706764241037,-1354.85,0.00032876,2]
[313114957,1706764241046,-505.56209072,0.00032876,2]
[313114959,1706764241055,-523.29235837,0.00032876,2]
[313114961,1706764241064,-533.40958161,0.00032876,2]
[313114962,1706764241073,-500.0,0.00032876,2]
[313114963,1706764241082,-500.0,0.00032876,2]
[313114964,1706764241092,-707.52,0.00032876,2]
[313114965,1706764241101,-597.19,0.00032876,2]
[313114966,1706764241111,-500.0,0.00032876,2]
[313114967,1706764241121,-500.0,0.00032876,2]
[313114968,1706764241130,-625.28809982,0.00032876,2]
[313114969,1706764241139,-580.43,0.00032876,2]
[313114970,1706764241148,-500.0,0.00032876,2]
[313114971,1706764241157,-500.0,0.00032876,2]
[313114972,1706764241166,-500.0,0.00032876,2]
[313114973,1706764241175,-500.0,0.00032876,2]
[313114974,1706764241184,-534.03540481,0.00032876,2]
[313114975,1706764241193,-500.0,0.00032876,2]
[313114976,1706764241202,-500.0,0.00032876,2]
[313114977,1706764241211,-530.39956257,0.00032876,2]
[313114978,1706764241220,-500.0,0.00032876,2]
[313114979,1706764241229,-500.0,0.00032876,2]
[313114980,1706764241238,-500.0,0.00032876,2]
[313114981,1706764241247,-500.0,0.00032876,2]
[313114982,1706764241256,-1110.92,0.00032876,2]
[313114983,1706764241265,-500.0,0.00032876,2]
[313114984,1706764241275,-523.05523664,0.00032876,2]
[313114985,1706764241284,-523.08164024,0.00032876,2]
[313114986,1706764241293,-500.0,0.00032876,2]
[313114987,1706764241302,-500.0,0.00032876,2]
[313114988,1706764241311,-500.0,0.00032876,2]
[313114989,1706764241320,-500.0,0.00032876,2]
[313114990,1706764241330,-964.26,0.00032876,2]
[313114991,1706764241340,-500.0,0.00032876,2]
[313114992,1706764241349,-500.0,0.00032876,2]
[313114993,1706764241358,-1739.73,0.00032876,2]
[313114994,1706764241368,-624.29601936,0.00032876,2]
[313114995,1706764241377,-500.0,0.00032876,2]
[313114996,1706764241387,-500.0,0.00032876,2]
[313114997,1706764241396,-500.0,0.00032876,2]
[313114998,1706764241408,-150.72314595,0.00032876,2]
[313114999,1706764241418,-500.0,0.00032876,2]
[313115000,1706764241427,-182.21638461,0.00032876,2]
[313115001,1706764241436,-500.0,0.00032876,2]
[313115002,1706764241446,-519.15267544,0.00032876,2]
[313115003,1706764241456,-500.0,0.00032876,2]
[313115004,1706764241465,-544.97,0.00032876,2]
[313115005,1706764241475,-500.0,0.00032876,2]
[313115006,1706764241484,-500.0,0.00032876,2]
[313115007,1706764241493,-903.61,0.00032876,2]
[313115008,1706764241502,-966.72,0.00032876,2]
[313115009,1706764241512,-1180.63,0.00032876,7]
[313115010,1706764241521,-507.8628672,0.00032876,2]
[313115011,1706764241530,-500.0,0.00032876,2]
[313115012,1706764241539,-500.0,0.00032876,2]
[313115013,1706764241548,-1035.52,0.00032876,2]
[313115014,1706764241557,-719.16,0.00032876,2]
[313115015,1706764241566,-500.0,0.00032876,2]
[313115016,1706764241576,-535.74362496,0.00032876,2]
[313115017,1706764241585,-500.0,0.00032876,2]
[313115018,1706764241594,-500.0,0.00032876,2]
[313115019,1706764241603,-500.0,0.00032876,2]
[313115020,1706764241614,-496.26189021,0.00032876,2]
[313115021,1706764241623,-182.40772478,0.00032876,2]
[313115022,1706764241631,-500.0,0.00032876,2]
[313115023,1706764241641,-500.0,0.00032876,2]
[313115024,1706764241649,-500.0,0.00032876,2]
[313115025,1706764241658,-500.0,0.00032876,2]
[313115026,1706764241666,-1198.59,0.00032876,2]
[313115027,1706764241675,-500.0,0.00032876,2]
[313115028,1706764241684,-500.0,0.00032876,2]
[313115029,1706764241693,-567.48855966,0.00032876,2]
[313115030,1706764241702,-500.0,0.00032876,2]
[313115031,1706764241711,-500.0,0.00032876,2]
[313115032,1706764241719,-500.0,0.00032876,2]
[313115033,1706764241728,-500.0,0.00032876,2]
[313115034,1706764241737,-500.0,0.00032876,2]
[313115035,1706764241747,-10000.0,0.00032876,3]
[313115036,1706764241758,-500.0,0.00032876,2]
[313115037,1706764241767,-500.0,0.00032876,2]
[313115038,1706764241776,-500.0,0.00032876,2]
[313115039,1706764241785,-500.0,0.00032876,2]
[313115040,1706764241794,-500.0,0.00032876,2]
[313115041,1706764241803,-500.0,0.00032876,20]
[313115042,1706764241812,-500.0,0.00032876,2]
[313115043,1706764241821,-500.0,0.00032876,2]
[313115044,1706764241831,-535.03834451,0.00032876,2]
[313115045,1706764241841,-500.0,0.00032876,2]
[313115046,1706764241850,-535.08176773,0.00032876,2]
[313115047,1706764241859,-500.0,0.00032876,2]
[313115048,1706764241868,-500.0,0.00032876,2]
[313115049,1706764241877,-500.0,0.00032876,2]
[313115050,1706764241886,-500.0,0.00032876,2]
[313115051,1706764241895,-500.0,0.00032876,2]
[313115052,1706764241904,-528.75668559,0.00032876,2]
[313115053,1706764241913,-500.0,0.00032876,2]
[313115054,1706764241922,-500.0,0.00032876,2]
[313115055,1706764241931,-844.48,0.00032876,2]
[313115056,1706764241941,-500.0,0.00032876,2]
[313115057,1706764241950,-210.0496212,0.00032876,2]
[313115058,1706764241959,-500.0,0.00032876,2]
[313115059,1706764241968,-236.39493764,0.00032876,2]
[313115060,1706764241977,-500.0,0.00032876,2]
[313115061,1706764241986,-570.86857171,0.00032876,2]
[313115062,1706764241995,-500.0,0.00032876,2]
[313115063,1706764242004,-500.0,0.00032876,2]
[313115064,1706764242014,-500.0,0.00032876,2]
[313115065,1706764242023,-500.0,0.00032876,2]
[313115066,1706764242033,-500.0,0.00032876,2]
[313115067,1706764242042,-500.0,0.00032876,2]
[313115068,1706764242051,-500.0,0.00032876,2]
[313115069,1706764242060,-500.0,0.00032876,2]
[313115070,1706764242070,-500.0,0.00032876,2]
[313115071,1706764242079,-500.0,0.00032876,2]
[313115072,1706764242088,-500.0,0.00032876,2]
[313115073,1706764242097,-500.0,0.00032876,2]
[313115074,1706764242106,-500.0,0.00032876,2]
[313115075,1706764242115,-500.0,0.00032876,2]
[313115076,1706764242125,-500.0,0.00032876,2]
[313115088,1706764242327,-500.0,0.00032876,2]
[313115089,1706764242336,-500.0,0.00032876,2]
[313115090,1706764242346,-236.8,0.00032876,2]
[313115091,1706764242356,-500.0,0.00032876,2]
[313115092,1706764242365,-500.0,0.00032876,2]
[313115093,1706764242374,-525.26176757,0.00032876,2]
[313115094,1706764242384,-500.0,0.00032876,2]
[313115095,1706764242393,-370.63455534,0.00032876,2]
[313115096,1706764242402,-500.0,0.00032876,2]
[313115097,1706764242412,-500.0,0.00032876,2]
[313115098,1706764242421,-500.0,0.00032876,2]
[313115099,1706764242431,-542.37631364,0.00032876,2]
[313115100,1706764242441,-500.0,0.00032876,2]
[313115101,1706764242451,-500.0,0.00032876,2]
[313115102,1706764242460,-595.54045968,0.00032876,2]
[313115103,1706764242470,-500.0,0.00032876,2]
[313115104,1706764242480,-500.0,0.00032876,2]
[313115105,1706764242490,-500.0,0.00032876,2]
[313115106,1706764242500,-500.0,0.00032876,2]
[313115107,1706764242511,-500.0,0.00032876,2]
[313115108,1706764242522,-500.0,0.00032876,2]
[313115109,1706764242531,-500.0,0.00032876,2]
[313115110,1706764242540,-646.8,0.00032876,2]
[313115111,1706764242550,-520.11811677,0.00032876,2]
[313115112,1706764242559,-516.1187632,0.00032876,2]
[313115113,1706764242569,-635.14175743,0.00032876,2]
[313115114,1706764242578,-694.26,0.00032876,2]
[313115115,1706764242588,-537.44654605,0.00032876,2]
[313115116,1706764242598,-508.98265333,0.00032876,2]
[313115117,1706764242608,-1325.26,0.00032876,2]
[313115118,1706764242617,-500.0,0.00032876,2]
[313115119,1706764242627,-500.0,0.00032876,2]
[313115120,1706764242637,-500.0,0.00032876,2]
[313115121,1706764242647,-500.0,0.00032876,2]
[313115122,1706764242656,-500.0,0.00032876,2]
[313115123,1706764242665,-500.0,0.00032876,2]
[313115124,1706764242675,-173.74603014,0.00032876,2]
[313115125,1706764242685,-500.0,0.00032876,2]
[313115126,1706764242694,-228.1354618,0.00032876,2]
[313115127,1706764242704,-812.21,0.00032876,5]
[313115128,1706764242713,-726.2,0.00032876,2]
[313115129,1706764242723,-1154.17,0.00032876,2]
[313115130,1706764242732,-558.88,0.00032876,2]
[313115131,1706764242742,-572.4669567,0.00032876,2]
[313115132,1706764242754,-500.0,0.00032876,2]
[313115133,1706764242766,-500.0,0.00032876,2]
[313115134,1706764242776,-500.0,0.00032876,2]
[313115135,1706764242786,-500.0,0.00032876,2]
[313115136,1706764242797,-744.15,0.00032876,2]
[313115137,1706764242806,-2998.66,0.00032876,2]
[313115138,1706764242815,-508.43526087,0.00032876,2]
[313115139,1706764242825,-500.0,0.00032876,2]
[313115140,1706764242834,-230.37955962,0.00032876,2]
[313115141,1706764242844,-500.0,0.00032876,2]
[313115142,1706764242853,-216.58770509,0.00032876,2]
[313115143,1706764242862,-1090.8,0.00032876,2]
[313115144,1706764242872,-518.22005317,0.00032876,2]
[313115145,1706764242882,-500.0,0.00032876,2]
[313115146,1706764242891,-500.0,0.00032876,2]
[313115147,1706764242900,-2334.32,0.00032876,2]
[313115148,1706764242909,-306.30973189,0.00032876,2]
[313115149,1706764242919,-1125.27,0.00032876,2]
[313115150,1706764242928,-371.3426691,0.00032876,2]
[313115151,1706764242937,-500.0,0.00032876,2]
[313115152,1706764242947,-2572.03,0.00032876,2]
[313115153,1706764242958,-1000.0,0.00032876,21]
[313115154,1706764242967,-646.65,0.00032876,2]
[313115155,1706764242976,-525.85274583,0.00032876,2]
[313115156,1706764242985,-500.0,0.00032876,2]
[313115157,1706764242994,-500.0,0.00032876,2]
[313115158,1706764243004,-500.0,0.00032876,2]
[313115159,1706764243014,-500.0,0.00032876,2]
[313115160,1706764243023,-220.56935443,0.00032876,2]
[313115161,1706764243033,-976.09,0.00032876,2]
[313115162,1706764243042,-500.0,0.00032876,2]
[313115163,1706764243051,-500.0,0.00032876,2]
[313115164,1706764243060,-500.0,0.00032876,2]
[313115165,1706764243070,-523.56007252,0.00032876,2]
[313115166,1706764243079,-500.0,0.00032876,2]
[313115167,1706764243089,-525.14111117,0.00032876,2]
[313115168,1706764243098,-500.0,0.00032876,2]
[313115169,1706764243108,-882.36,0.00032876,2]
[313115170,1706764243117,-164.71138132,0.00032876,2]
[313115171,1706764243127,-1222.72,0.00032876,2]
[313115172,1706764243136,-531.55857404,0.00032876,2]
[313115173,1706764243146,-500.0,0.00032876,2]
[313115174,1706764243155,-500.0,0.00032876,2]
[313115175,1706764243165,-500.0,0.00032876,2]
[313115176,1706764243174,-587.91586102,0.00032876,2]
[313115177,1706764243183,-615.94,0.00032876,2]
[313115178,1706764243193,-4756.15,0.00032876,2]
[313115179,1706764243203,-566.49,0.00032876,2]
[313115180,1706764243212,-500.0,0.00032876,2]
[313115181,1706764243222,-517.37369283,0.00032876,2]
[313115182,1706764243231,-613.94,0.00032876,2]
[313115183,1706764243241,-523.25680525,0.00032876,2]
[313115184,1706764243250,-500.0,0.00032876,2]
[313115185,1706764243260,-500.0,0.00032876,2]
[313115186,1706764243270,-466.08811002,0.00032876,2]
[313115187,1706764243280,-500.0,0.00032876,2]
[313115188,1706764243290,-500.0,0.00032876,2]
[313115189,1706764243299,-500.0,0.00032876,2]
[313115190,1706764243309,-573.21343277,0.00032876,2]
[313115191,1706764243319,-500.0,0.00032876,2]
[313115192,1706764243329,-190.40488526,0.00032876,2]
[313115193,1706764243338,-500.0,0.00032876,2]
[313115194,1706764243349,-500.0,0.00032876,2]
[313115195,1706764243358,-533.60165876,0.00032876,2]
[313115196,1706764243368,-500.0,0.00032876,2]
[313115197,1706764243378,-500.0,0.00032876,2]
[313115198,1706764243387,-572.55,0.00032876,2]
[313115199,1706764243397,-500.0,0.00032876,2]
[313115200,1706764243407,-1219.09,0.00032876,2]
[313115201,1706764243417,-500.0,0.00032876,2]
[313115202,1706764243427,-500.0,0.00032876,2]
[313115203,1706764243437,-500.0,0.00032876,2]
[313115204,1706764243446,-500.0,0.00032876,2]
[313115205,1706764243455,-500.0,0.00032876,2]
[313115206,1706764243465,-500.0,0.00032876,2]
[313115207,1706764243475,-500.0,0.00032876,2]
[313115208,1706764243484,-500.0,0.00032876,2]
[313115209,1706764243494,-500.0,0.00032876,2]
[313115210,1706764243504,-500.0,0.00032876,2]
[313115211,1706764243515,-500.0,0.00032876,2]
[313115212,1706764243524,-500.0,0.00032876,2]
[313115213,1706764243534,-500.0,0.00032876,2]
[313115214,1706764243543,-500.0,0.00032876,2]
[313115215,1706764243552,-500.0,0.00032876,2]
[313115216,1706764243561,-500.0,0.00032876,2]
[313115217,1706764243570,-500.0,0.00032876,2]
[313115218,1706764243580,-500.0,0.00032876,2]
[313115219,1706764243589,-500.0,0.00032876,2]
[313115220,1706764243598,-500.0,0.00032876,2]
[313115221,1706764243607,-500.0,0.00032876,2]
[313115222,1706764243617,-500.0,0.00032876,2]
[313115223,1706764243626,-500.0,0.00032876,2]
[313115224,1706764243635,-500.0,0.00032876,2]
[313115225,1706764243644,-515.13299371,0.00032876,2]
[313115226,1706764243653,-500.0,0.00032876,2]
[313115227,1706764243662,-1095.15,0.00032876,2]
[313115228,1706764243671,-734.19,0.00032876,2]
[313115229,1706764243680,-500.0,0.00032876,2]
[313115230,1706764243689,-787.25,0.00032876,2]
[313115231,1706764243698,-545.45,0.00032876,2]